bitfinex/quotes_SOLUSD_20241024
["timestamp","ask_amount","ask_price","bid_price","bid_amount"]
[1729753033564,0.1,173.12,173.07,0.12549]
[1729753033883,0.1,173.13,173.11,18.67361362]
[1729753034091,0.1,173.13,173.12,18.67361362]
[1729753035786,0.1,173.13,173.07,0.12549]
[1729753035988,0.1,173.13,173.12,18.67361362]
[1729753040675,0.1,173.13,173.07,0.12549]
[1729753040989,0.1,173.13,173.12,18.67361362]
[1729753043696,0.1,173.11,173.06,11.00091126]
[1729753043897,0.1,173.1,173.02,0.25098]
[1729753044373,0.1,173.1,173.08,18.67361362]
[1729753044769,0.1,173.1,173.02,0.25098]
[1729753044770,0.1,173.1,173.09,18.67361362]
[1729753046483,0.1,173.11,173.09,18.67361362]
[1729753046680,0.1,173.11,173.1,18.67361362]
[1729753047385,0.1,173.11,173.02,3.30432132]
[1729753047593,0.1,173.1,173.02,3.30432132]
[1729753047795,0.1,173.1,173.09,18.67361362]
[1729753050006,0.1,173.11,173.09,18.67361362]
[1729753050178,0.1,173.11,173.1,18.67361362]
[1729753052083,23.976884,173.12,173.1,18.67361362]
[1729753052481,0.1,173.11,173.1,18.67361362]
[1729753053503,0.1,173.09,173.08,18.67361362]
[1729753056698,0.1,173.1,173.08,18.67361362]
[1729753056907,23.876884,173.12,173.09,18.67361362]
[1729753057208,0.1,173.14,173.11,18.67361362]
[1729753057501,0.1,173.11,173.09,17.30423066]
[1729753057703,0.1,173.11,173.02,3.30432132]
[1729753057704,0.1,173.09,173.08,18.67361362]
[1729753058697,17.36,173.24,173.08,18.67361362]
[1729753058698,0.1,173.17,173.09,0.12549]
[1729753058896,0.2,173.18,173.16,18.67361362]
[1729753059101,0.1,173.17,173.16,18.67361362]
[1729753059408,0.2,173.17,173.1,74.69445448]
[1729753059707,0.2,173.16,173.08,6.13490887]
[1729753059899,0.1,173.13,173.08,6.13490887]
[1729753060284,0.1,173.13,173.12,18.67361362]
[1729753061210,23.876884,173.15,173.12,18.67361362]
[1729753061511,0.1,173.14,173.13,18.67361362]
[1729753064005,23.876884,173.15,173.13,18.67361362]
[1729753064208,0.1,173.14,173.04,6.13490887]
[1729753064414,0.1,173.14,173.13,9.33680681]
[1729753070613,0.1,173.14,173.13,18.67361362]
[1729753070794,23.976884,173.15,173.13,18.67361362]
[1729753071298,0.1,173.14,173.13,18.67361362]
[1729753072114,23.976884,173.15,173.13,18.67361362]
[1729753072416,23.976884,173.15,173.14,9.33680681]
[1729753075115,0.1,173.13,173.06,20.25098]
[1729753075332,0.1,173.13,173.12,18.67361362]
[1729753079614,23.876884,173.15,173.12,18.79910362]
[1729753079615,0.1,173.15,173.12,18.79910362]
[1729753079821,0.1,173.17,173.14,18.67361362]
[1729753080001,0.1,173.17,173.16,18.67361362]
[1729753080199,0.1,173.18,173.16,18.67361362]
[1729753080403,0.1,173.18,173.17,18.67361362]
[1729753084733,0.1,173.18,173.12,0.12549]
[1729753085026,0.1,173.18,173.17,18.67361362]
[1729753085228,0.1,173.18,173.12,0.12549]
[1729753085401,0.1,173.18,173.17,18.67361362]
[1729753094103,0.1,173.19,173.17,18.67361362]
[1729753095927,0.1,173.18,173.17,18.67361362]
[1729753099431,0.1,173.18,173.13,0.12549]
[1729753099725,0.1,173.18,173.17,18.67361362]
[1729753101432,0.1,173.19,173.17,18.67361362]
[1729753101618,0.1,173.19,173.18,18.67361362]
[1729753109849,0.2,173.23,173.18,18.67361362]
[1729753110027,0.1,173.22,173.14,0.12549]
[1729753110223,0.1,173.22,173.15,7.52513496]
[1729753111450,0.2,173.22,173.15,7.52513496]
[1729753111829,0.1,173.22,173.15,7.52513496]
[1729753112338,0.1,173.2,173.15,7.52513496]
[1729753112841,0.1,173.21,173.15,7.52513496]
[1729753113650,0.1,173.22,173.15,7.52513496]
[1729753113944,0.2,173.22,173.15,7.52513496]
[1729753114258,0.1,173.2,173.15,7.52513496]
[1729753114443,0.1,173.22,173.15,7.52513496]
[1729753114645,0.1,173.22,173.21,9.33680681]
[1729753116052,0.1,173.2,173.13,0.12549]
[1729753116252,0.2,173.2,173.18,18.67361362]
[1729753118731,0.2,173.19,173.16,9.33680681]
[1729753118961,0.1,173.16,173.1,12.15285903]
[1729753119254,0.1,173.14,173.11,18.67361362]
[1729753119431,0.1,173.14,173.12,18.67361362]
[1729753120354,0.1,173.13,173.11,18.67361362]
[1729753120545,0.1,173.13,173.04,6.01703052]
[1729753120859,0.1,173.1,173.08,18.67361362]
[1729753121460,0.1,173.1,173.0,15.07838151]
[1729753121755,0.1,173.1,173.08,18.67361362]
[1729753122351,0.1,173.1,173.07,18.67361362]
[1729753123157,0.1,173.09,173.07,18.67361362]
[1729753123459,0.1,173.1,173.07,18.67361362]
[1729753123751,0.1,173.09,173.07,18.67361362]
[1729753124138,0.1,173.09,173.08,18.67361362]
[1729753126059,0.1,173.1,173.08,18.67361362]
[1729753126554,18.67361362,173.14,173.0,89.77283599]
[1729753126555,0.1,173.15,173.1,0.12549]
[1729753126747,22.6509,173.17,173.14,18.67361362]
[1729753127049,22.6509,173.17,173.16,18.67361362]
[1729753127559,0.2,173.19,173.16,18.67361362]
[1729753127737,0.1,173.18,173.17,18.67361362]
[1729753127937,0.2,173.18,173.17,18.67361362]
[1729753128450,0.1,173.17,173.16,18.67361362]
[1729753133267,0.2,173.18,173.16,18.67361362]
[1729753133446,0.1,173.17,173.16,18.67361362]
[1729753134254,0.1,173.18,173.16,18.67361362]
[1729753134564,0.1,173.18,173.17,18.67361362]
[1729753135152,0.1,173.18,173.11,0.12549]
[1729753135352,0.1,173.18,173.17,18.67361362]
[1729753140780,0.1,173.18,173.16,18.67361362]
[1729753140952,0.1,173.22,173.18,0.25098]
[1729753141153,0.1,173.22,173.21,18.67361362]
[1729753141353,0.1,173.23,173.21,18.67361362]
[1729753141652,0.1,173.23,173.22,18.67361362]
[1729753143869,0.1,173.22,173.18,8.35360423]
[1729753144053,0.1,173.22,173.21,18.67361362]
[1729753144476,0.1,173.23,173.21,18.67361362]
[1729753144654,0.1,173.23,173.22,18.67361362]
[1729753147752,0.1,173.21,173.2,18.67361362]
[1729753147954,0.1,173.19,173.17,18.67361362]
[1729753148756,0.1,173.19,173.11,8.10262423]
[1729753148962,0.1,173.19,173.17,18.67361362]
[1729753150565,0.1,173.19,173.11,11.03341435]
[1729753150757,0.1,173.19,173.13,0.25098]
[1729753150963,0.1,173.19,173.17,18.67361362]
[1729753151369,0.1,173.18,173.17,18.67361362]
[1729753151579,0.1,173.18,173.13,0.25098]
[1729753151755,0.1,173.18,173.17,18.67361362]
[1729753155351,0.1,173.18,173.12,20.25098]
[1729753155557,0.1,173.18,173.17,18.67361362]
[1729753156463,0.1,173.28,173.18,20.25098]
[1729753156669,0.2,173.28,173.27,18.67361362]
[1729753157464,0.1,173.28,173.27,18.67361362]
[1729753159873,0.2,173.32,173.27,18.67361362]
[1729753160068,0.1,173.28,173.21,44.027864]
[1729753160266,0.1,173.28,173.23,20.25098]
[1729753160576,0.2,173.32,173.23,28.35360423]
[1729753160764,0.2,173.32,173.31,18.67361362]
[1729753162254,0.6071155,173.35,173.32,0.25098]
[1729753162655,0.6071155,173.35,173.34,18.67361362]
[1729753164478,0.6071155,173.35,173.34,29.04511836]
[1729753164858,0.6071155,173.35,173.34,29.17060836]
[1729753165081,0.6071155,173.35,173.34,29.29609836]
[1729753165757,0.6071155,173.35,173.34,29.17060836]
[1729753165958,0.6071155,173.35,173.32,0.12549]
[1729753166164,0.6071155,173.35,173.34,29.04511836]
[1729753167178,0.1,173.44,173.34,49.04511836]
[1729753167370,0.1,173.45,173.43,29.04511836]
[1729753167556,0.1,173.45,173.44,29.04511836]
[1729753168178,0.1,173.43,173.35,52.13048823]
[1729753168378,0.1,173.43,173.42,29.04511836]
[1729753168971,0.1,173.43,173.35,52.13048823]
[1729753169187,0.1,173.43,173.42,29.04511836]
[1729753171870,0.1,173.45,173.42,29.04511836]
[1729753172166,0.1,173.45,173.44,29.04511836]
[1729753172362,0.2,173.45,173.44,29.04511836]
[1729753172575,0.1,173.45,173.42,29.04511836]
[1729753172761,0.1,173.45,173.44,29.04511836]
[1729753172964,0.1,173.49,173.44,29.04511836]
[1729753173173,22.7167,173.5,173.38,8.10262423]
[1729753173388,0.1,173.45,173.38,8.10262423]
[1729753173778,0.1,173.45,173.4,0.25098]
[1729753173970,0.1,173.45,173.44,29.04511836]
[1729753175579,0.6071155,173.52,173.45,0.12549]
[1729753175785,0.6071155,173.52,173.51,29.04511836]
[1729753176991,0.8071155,173.52,173.5,29.04511836]
[1729753177287,0.1,173.51,173.5,29.04511836]
[1729753177676,0.1,173.51,173.45,0.25098]
[1729753177879,0.1,173.49,173.45,0.25098]
[1729753178084,0.1,173.49,173.48,29.04511836]
[1729753178792,0.2,173.49,173.47,29.04511836]
[1729753178976,0.1,173.48,173.47,29.04511836]
[1729753179296,0.1,173.46,173.42,0.12549]
[1729753179465,0.1,173.45,173.42,0.12549]
[1729753179665,0.1,173.45,173.44,29.04511836]
[1729753180679,0.1,173.45,173.42,0.12549]
[1729753180881,0.1,173.44,173.42,0.12549]
[1729753181073,0.1,173.44,173.43,29.04511836]
[1729753181988,51.94681836,173.48,173.36,8.10262423]
[1729753181989,0.2,173.43,173.36,8.10262423]
[1729753182184,0.2,173.43,173.41,29.04511836]
[1729753182769,0.1,173.42,173.41,29.04511836]
[1729753182988,0.1,173.42,173.36,8.10262423]
[1729753183192,0.1,173.42,173.41,29.04511836]
[1729753184576,0.1,173.42,173.37,20.25098]
[1729753184772,0.1,173.42,173.41,29.04511836]
[1729753184989,0.1,173.42,173.41,29.01394592]
[1729753185889,0.2,173.42,173.39,29.04511836]
[1729753186182,0.1,173.39,173.38,29.04511836]
[1729753188406,0.12549,173.46,173.39,0.1]
[1729753188596,29.04511836,173.43,173.39,0.1]
[1729753188783,23.776884,173.42,173.39,0.1]
[1729753188985,23.776884,173.42,173.4,0.1]
[1729753189403,52.82200236,173.42,173.39,0.1]
[1729753189596,20.12549,173.46,173.37,0.1]
[1729753189597,23.776884,173.4,173.37,0.1]
[1729753190494,5.7636,173.5,173.43,0.1]
[1729753190704,29.04511836,173.48,173.43,29.14511836]
[1729753191088,29.04511836,173.48,173.43,0.1]
[1729753191300,29.04511836,173.48,173.42,29.04511836]
[1729753191301,29.04511836,173.47,173.42,0.1]
[1729753191608,22.9017,173.46,173.43,0.1]
[1729753191786,23.776884,173.45,173.43,0.1]
[1729753194388,23.776884,173.45,173.41,0.1]
[1729753194389,52.82200236,173.45,173.41,0.1]
[1729753194701,58.58740236,173.45,173.41,0.1]
[1729753194913,29.542284,173.45,173.41,29.14511836]
[1729753195203,23.776884,173.45,173.42,29.04511836]
[1729753195387,23.776884,173.45,173.41,29.14511836]
[1729753196302,23.776884,173.45,173.42,29.04511836]
[1729753197109,23.776884,173.45,173.41,29.14511836]
[1729753197807,23.776884,173.45,173.32,20.1]
[1729753197808,23.776884,173.43,173.39,29.04511836]
[1729753197991,23.776884,173.43,173.39,29.14511836]
[1729753198393,23.776884,173.43,173.39,29.04511836]
[1729753199333,23.776884,173.43,173.38,0.1]
[1729753199605,23.776884,173.43,173.38,29.14511836]
[1729753199804,58.58800236,173.43,173.38,29.14511836]
[1729753200010,58.58800236,173.43,173.38,29.04511836]
[1729753200209,21.3157,173.38,173.34,0.1]
[1729753200389,29.04511836,173.36,173.33,0.1]
[1729753200593,23.776884,173.35,173.32,0.1]
[1729753201990,23.776884,173.35,173.31,0.1]
[1729753202192,23.776884,173.35,173.32,0.1]
[1729753204408,23.776884,173.35,173.27,0.1]
[1729753204409,23.776884,173.32,173.27,0.1]
[1729753204790,23.776884,173.32,173.29,29.04511836]
[1729753205007,52.82200236,173.33,173.28,29.14511836]
[1729753205221,23.776884,173.33,173.31,29.14511836]
[1729753205399,23.776884,173.36,173.32,29.14511836]
[1729753207109,52.82200236,173.32,173.28,0.1]
[1729753207810,23.776884,173.33,173.29,0.1]
[1729753207992,23.776884,173.33,173.28,0.1]
[1729753207993,52.82200236,173.33,173.28,0.1]
[1729753208393,58.59140236,173.33,173.28,0.1]
[1729753209592,58.59140236,173.33,173.28,29.14511836]
[1729753210500,23.776884,173.34,173.31,29.04511836]
[1729753210700,20.0,173.35,173.31,29.04511836]
[1729753211327,54.81381836,173.35,173.3,29.14511836]
[1729753212613,23.776884,173.34,173.31,29.04511836]
[1729753213818,23.776884,173.34,173.32,29.04511836]
[1729753214298,34.81321836,173.37,173.31,0.1]
[1729753214299,23.776884,173.37,173.33,29.14511836]
[1729753214615,23.776884,173.37,173.34,29.04511836]
[1729753215003,23.776884,173.37,173.34,29.14511836]
[1729753215392,15.1037,173.38,173.36,29.04511836]
[1729753215905,15.1037,173.38,173.35,29.04511836]
[1729753216390,20.8714,173.38,173.34,29.04511836]
[1729753216692,20.8714,173.38,173.33,29.04511836]
[1729753216897,23.776884,173.37,173.33,29.04511836]
[1729753217215,23.776884,173.37,173.33,29.14511836]
[1729753217424,23.776884,173.37,173.33,29.04511836]
[1729753218913,23.776884,173.37,173.33,29.14511836]
[1729753219221,23.776884,173.37,173.33,29.04511836]
[1729753219714,23.776884,173.37,173.35,29.04511836]
[1729753220228,23.776884,173.37,173.33,0.1]
[1729753220229,23.776884,173.37,173.36,29.04511836]
[1729753220723,20.0,173.4,173.36,29.04511836]
[1729753221424,20.0,173.4,173.36,29.14511836]
[1729753222311,20.0,173.4,173.37,29.04511836]
[1729753222612,23.776884,173.4,173.37,29.04511836]
[1729753222814,23.0246,173.42,173.38,29.04511836]
[1729753223012,23.0246,173.42,173.39,29.04511836]
[1729753224116,23.776884,173.41,173.4,29.04511836]
[1729753224504,23.776884,173.41,173.39,0.1]
[1729753224710,23.776884,173.41,173.38,29.04511836]
[1729753224907,23.776884,173.41,173.38,29.14511836]
[1729753225218,23.776884,173.41,173.38,29.04511836]
[1729753229120,23.776884,173.41,173.39,29.04511836]
[1729753229809,23.776884,173.41,173.4,29.04511836]
[1729753230426,23.776884,173.41,173.39,29.04511836]
[1729753230810,23.776884,173.42,173.39,29.04511836]
[1729753231003,23.776884,173.42,173.33,16.2761]
[1729753231004,52.82200236,173.4,173.35,0.1]
[1729753231210,23.776884,173.4,173.37,0.2]
[1729753231506,23.776884,173.41,173.37,29.24511836]
[1729753231907,23.776884,173.41,173.37,29.14511836]
[1729753232521,23.776884,173.41,173.37,29.24511836]
[1729753232823,23.776884,173.41,173.38,29.04511836]
[1729753233030,23.776884,173.41,173.37,0.2]
[1729753233031,23.776884,173.41,173.37,29.04511836]
[1729753233420,23.776884,173.41,173.37,29.14511836]
[1729753233714,23.776884,173.41,173.37,29.24511836]
[1729753233906,23.776884,173.41,173.37,29.04511836]
[1729753234110,52.82200236,173.41,173.36,29.04511836]
[1729753234324,58.58880236,173.41,173.36,29.04511836]
[1729753234531,29.04511836,173.37,173.31,0.2]
[1729753234713,52.82200236,173.36,173.31,0.2]
[1729753235020,52.82200236,173.36,173.31,0.1]
[1729753235021,29.04511836,173.35,173.31,0.1]
[1729753235228,23.776884,173.34,173.3,0.2]
[1729753235532,23.776884,173.34,173.31,0.2]
[1729753235715,23.776884,173.36,173.32,29.04511836]
[1729753236316,29.545284,173.36,173.32,29.04511836]
[1729753236827,58.59040236,173.36,173.31,29.24511836]
[1729753237025,58.59040236,173.36,173.3,0.2]
[1729753237231,52.82200236,173.33,173.28,29.14511836]
[1729753237404,52.82200236,173.33,173.28,29.24511836]
[1729753237807,52.82200236,173.33,173.28,29.14511836]
[1729753238026,38.29944318,173.33,173.28,0.1]
[1729753238221,5.7684,173.36,173.27,0.1]
[1729753238222,23.776884,173.31,173.27,0.1]
[1729753238430,52.82200236,173.31,173.27,0.1]
[1729753239616,58.59200236,173.31,173.25,29.14511836]
[1729753239813,58.59200236,173.31,173.27,0.1]
[1729753240026,23.776884,173.31,173.28,0.1]
[1729753240328,23.776884,173.31,173.27,29.24511836]
[1729753240625,52.82200236,173.31,173.27,0.2]
[1729753241529,52.82200236,173.31,173.28,0.1]
[1729753241731,23.776884,173.31,173.28,0.1]
[1729753241902,17.31,173.41,173.2,29.04511836]
[1729753241903,20.0,173.34,173.3,29.14511836]
[1729753242111,23.776884,173.33,173.31,29.04511836]
[1729753242825,22.0172,173.36,173.32,29.14511836]
[1729753243012,22.0172,173.36,173.32,29.24511836]
[1729753244324,20.0,173.38,173.35,29.04511836]
[1729753244622,56.82951836,173.4,173.35,29.04511836]
[1729753244830,29.04511836,173.39,173.34,29.24511836]
[1729753245208,56.82951836,173.4,173.35,29.04511836]
[1729753246020,29.544284,173.39,173.35,29.04511836]
[1729753246408,58.58940236,173.39,173.34,29.24511836]
[1729753246823,23.776884,173.39,173.35,29.14511836]
[1729753247103,23.776884,173.39,173.36,29.04511836]
[1729753247527,23.776884,173.39,173.36,29.14511836]
[1729753247735,23.776884,173.39,173.36,29.24511836]
[1729753248028,23.776884,173.39,173.35,29.04511836]
[1729753248221,58.58930236,173.39,173.34,29.24511836]
[1729753248410,58.58930236,173.39,173.34,29.04511836]
[1729753249209,58.58930236,173.39,173.34,29.14511836]
[1729753250010,58.58930236,173.39,173.34,29.24511836]
[1729753250734,58.58930236,173.39,173.36,29.14511836]
[1729753250735,23.776884,173.39,173.36,29.14511836]
[1729753250915,23.776884,173.39,173.37,29.04511836]
[1729753253031,23.776884,173.39,173.36,29.24511836]
[1729753254225,23.776884,173.39,173.37,29.04511836]
[1729753254422,23.776884,173.39,173.38,29.04511836]
[1729753255316,23.776884,173.39,173.37,29.24511836]
[1729753255528,23.776884,173.39,173.37,29.14511836]
[1729753255913,23.776884,173.39,173.37,29.24511836]
[1729753256928,23.776884,173.4,173.37,29.24511836]
[1729753258337,23.776884,173.41,173.38,29.14511836]
[1729753258530,43.776884,173.42,173.38,29.14511836]
[1729753259528,23.776884,173.42,173.39,29.04511836]
[1729753260236,22.9613,173.44,173.41,29.14511836]
[1729753260440,45.43811836,173.44,173.4,29.04511836]
[1729753260641,29.04511836,173.43,173.38,29.04511836]
[1729753260934,29.04511836,173.42,173.37,29.14511836]
[1729753261243,29.04511836,173.4,173.36,0.2]
[1729753261421,23.776884,173.39,173.36,0.2]
[1729753261627,23.776884,173.4,173.37,0.1]
[1729753262419,42.37318388,173.4,173.36,0.1]
[1729753263938,42.37318388,173.4,173.36,0.2]
[1729753264128,23.776884,173.4,173.36,18.79629988]
[1729753264737,23.776884,173.4,173.39,9.29814994]
[1729753264938,16.393,173.44,173.4,0.2]
[1729753265238,24.36129988,173.46,173.41,18.69629988]
[1729753265639,24.36089988,173.47,173.42,18.69629988]
[1729753266351,20.0,173.46,173.42,29.13910446]
[1729753266652,20.0,173.46,173.43,29.03910446]
[1729753266837,20.0,173.45,173.41,29.03910446]
[1729753267043,23.776884,173.44,173.4,29.13910446]
[1729753267938,29.542584,173.44,173.4,29.03910446]
[1729753268128,29.542584,173.44,173.4,0.1]
[1729753268321,29.542584,173.44,173.4,0.2]
[1729753268748,29.542584,173.44,173.4,29.23910446]
[1729753268945,29.542584,173.44,173.43,0.1]
[1729753269123,5.7647,173.47,173.43,29.13910446]
[1729753269324,20.0,173.46,173.43,29.13910446]
[1729753269637,57.76470446,173.48,173.43,29.13910446]
[1729753270257,29.03910446,173.47,173.42,29.13910446]
[1729753270541,23.776884,173.46,173.43,29.13910446]
[1729753270745,23.776884,173.47,173.43,29.13910446]
[1729753271448,23.776884,173.47,173.44,29.13910446]
[1729753271648,23.776884,173.47,173.45,29.03910446]
[1729753271847,5.7637,173.5,173.46,29.03910446]
[1729753272357,20.0,173.49,173.46,29.03910446]
[1729753272747,29.5497092,173.51,173.4,29.03910446]
[1729753272748,0.51060474,173.51,173.48,29.03910446]
[1729753273135,0.51060474,173.51,173.47,29.23910446]
[1729753273947,0.51060474,173.51,173.5,29.03910446]
[1729753274147,0.51060474,173.51,173.48,29.23910446]
[1729753274651,0.51060474,173.51,173.49,29.03910446]
[1729753275163,24.28748874,173.51,173.49,29.03910446]
[1729753275659,24.28748874,173.51,173.48,29.23910446]
[1729753277158,24.28748874,173.51,173.48,29.13910446]
[1729753277535,24.28748874,173.51,173.48,29.23910446]
[1729753277735,24.28748874,173.51,173.49,14.51955223]
[1729753277940,24.28748874,173.51,173.48,29.23910446]
[1729753279160,24.28748874,173.51,173.48,29.13910446]
[1729753279346,24.28748874,173.51,173.48,29.23910446]
[1729753279548,24.28748874,173.51,173.48,0.2]
[1729753279745,24.28748874,173.51,173.47,29.03910446]
[1729753279746,29.03910446,173.49,173.45,0.2]
[1729753279955,52.81598846,173.48,173.44,0.2]
[1729753280152,52.81598846,173.48,173.45,0.2]
[1729753280355,52.81598846,173.48,173.46,0.1]
[1729753280760,23.776884,173.48,173.46,0.1]
[1729753281059,29.5497092,173.51,173.47,0.2]
[1729753281256,23.776884,173.5,173.47,0.1]
[1729753281647,23.776884,173.5,173.47,0.2]
[1729753281855,52.81598846,173.48,173.45,0.2]
[1729753282062,23.776884,173.45,173.42,0.1]
[1729753282249,29.03910446,173.43,173.41,0.1]
[1729753282451,29.03910446,173.43,173.4,0.2]
[1729753282847,23.776884,173.42,173.4,0.1]
[1729753283055,52.81598846,173.42,173.4,0.2]
[1729753283248,52.81598846,173.42,173.41,0.1]
[1729753283454,52.81598846,173.42,173.39,0.1]
[1729753283651,52.81598846,173.42,173.37,0.1]
[1729753283652,23.776884,173.39,173.36,0.2]
[1729753283867,52.81598846,173.39,173.35,0.2]
[1729753284167,52.81598846,173.39,173.37,0.1]
[1729753284356,23.776884,173.39,173.37,0.1]
[1729753284668,52.81598846,173.39,173.37,0.1]
[1729753285665,52.81598846,173.39,173.35,0.2]
[1729753285866,52.81598846,173.39,173.37,0.1]
[1729753287458,23.776884,173.39,173.37,0.1]
[1729753288666,23.776884,173.42,173.39,0.1]
[1729753288849,29.03910446,173.43,173.39,0.1]
[1729753289170,29.03910446,173.42,173.39,0.1]
[1729753289667,29.03910446,173.42,173.4,0.1]
[1729753289851,29.03910446,173.43,173.4,0.1]
[1729753290056,23.776884,173.42,173.4,0.1]
[1729753290942,43.776884,173.44,173.4,0.2]
[1729753291142,52.81598846,173.45,173.41,0.1]
[1729753291346,23.776884,173.45,173.42,0.1]
[1729753291765,23.776884,173.45,173.43,0.1]
[1729753291950,45.32360446,173.46,173.43,0.1]
[1729753292770,5.7646,173.48,173.35,6.4112]
[1729753292771,34.80370446,173.48,173.44,0.1]
[1729753293547,23.776884,173.47,173.44,0.1]
[1729753296756,29.541584,173.47,173.43,0.1]
[1729753296970,58.58068846,173.47,173.43,0.1]
[1729753297573,58.58068846,173.47,173.44,0.1]
[1729753298073,29.03910446,173.45,173.43,0.1]
[1729753298252,23.776884,173.43,173.4,0.1]
[1729753298454,52.81598846,173.43,173.4,0.1]
[1729753298768,23.776884,173.43,173.41,0.1]
[1729753298942,23.776884,173.43,173.39,0.2]
[1729753299142,23.776884,173.43,173.4,0.1]
[1729753299951,23.776884,173.43,173.4,0.2]
[1729753300155,23.776884,173.43,173.4,0.1]
[1729753300853,23.776884,173.43,173.41,0.1]
[1729753301371,23.776884,173.43,173.4,0.2]
[1729753301563,23.776884,173.43,173.41,0.1]
[1729753302373,42.36867528,173.43,173.41,0.1]
[1729753302567,42.36867528,173.43,173.39,0.2]
[1729753302951,42.36867528,173.43,173.4,0.1]
[1729753303368,18.59179128,173.42,173.4,0.1]
[1729753303675,23.776884,173.41,173.39,0.1]
[1729753303979,42.36867528,173.41,173.38,0.2]
[1729753304573,42.36867528,173.41,173.39,0.1]
[1729753305163,42.36867528,173.41,173.4,0.1]
[1729753305476,23.776884,173.41,173.4,0.1]
[1729753306474,23.776884,173.41,173.39,0.2]
[1729753306676,23.776884,173.41,173.4,0.1]
[1729753308492,23.776884,173.41,173.39,0.2]
[1729753308683,23.776884,173.41,173.4,0.1]
[1729753308974,42.36867528,173.41,173.39,0.1]
[1729753309188,23.776884,173.39,173.37,0.2]
[1729753309351,23.776884,173.37,173.36,0.1]
[1729753309554,42.36867528,173.37,173.35,0.1]
[1729753310376,52.8491455,173.37,173.33,0.1]
[1729753310552,29.0722615,173.36,173.33,0.2]
[1729753310764,23.776884,173.35,173.33,0.2]
[1729753312862,23.776884,173.35,173.34,0.1]
[1729753313083,23.776884,173.35,173.34,0.2]
[1729753316674,23.776884,173.35,173.34,0.1]
[1729753316880,23.776884,173.35,173.34,0.2]
[1729753319775,23.776884,173.35,173.34,0.1]
[1729753319974,23.776884,173.35,173.34,0.2]
[1729753321461,14.53613075,173.4,173.37,0.1]
[1729753321665,6.4825,173.42,173.39,0.1]
[1729753321990,29.0722615,173.41,173.38,0.2]
[1729753322785,23.776884,173.4,173.38,0.2]
[1729753325568,23.776884,173.4,173.39,0.1]
[1729753328871,23.776884,173.41,173.39,0.1]
[1729753329273,23.776884,173.41,173.38,0.2]
[1729753330279,23.776884,173.41,173.39,0.2]
[1729753331179,23.776884,173.41,173.39,0.1]
[1729753331388,23.776884,173.41,173.39,0.2]
[1729753331683,35.2438615,173.46,173.41,0.1]
[1729753331891,20.0,173.45,173.42,29.0722615]
[1729753332270,24.7564076,173.46,173.42,18.5848076]
[1729753332882,23.776884,173.45,173.42,18.5848076]
[1729753333690,23.776884,173.45,173.43,18.5848076]
[1729753333875,6.1716,173.5,173.45,0.2]
[1729753334078,6.1716,173.5,173.45,18.7848076]
[1729753334395,6.1716,173.5,173.46,0.1]
[1729753334578,6.1716,173.5,173.46,0.2]
[1729753334780,6.1716,173.5,173.47,18.5848076]
[1729753334983,0.51060474,173.51,173.47,18.6848076]
[1729753335187,24.85871234,173.51,173.47,0.1]
[1729753335570,23.776884,173.5,173.47,0.1]
[1729753336591,24.28748874,173.51,173.47,0.2]
[1729753336793,24.28748874,173.51,173.47,0.1]
[1729753336991,24.28748874,173.51,173.47,18.7848076]
[1729753337797,0.51060474,173.51,173.5,18.5848076]
[1729753337980,0.51060474,173.51,173.49,18.7848076]
[1729753338175,0.51060474,173.51,173.49,18.6848076]
[1729753338395,0.51060474,173.51,173.49,18.7848076]
[1729753338594,0.51060474,173.51,173.49,0.2]